Cogmind - Beta 13 @@@ ROGUE MODE // 2024.04.03 @ 21:07:09 Player: SPRING Result: Destroyed by G-50 Soldier with Heavy Laser Performance ------------- Evolutions (4) 2000 Regions Visited (7) 1400 Robots Destroyed (174) 870 Value Destroyed (4553) 4553 Prototype IDs (3) 60 Alien Tech Used (0) 0 Bonus (262) 262 TOTAL SCORE: 9145 Bonus ------- High Alert Combat Kills 81 Follower Combat Kills 194 Friendly Fire -13 Cogmind --------- Core Integrity 0/850 Matter 42/300 Energy 100/100 System Corruption 0% Temperature Cool (9) Movement Core (400) Ox7 Location -6/Extension Parts ------- > --- POWER (2) -------- (None) > --- PROPULSION (5) --- (None) > --- UTILITY (6) ------ Large Storage Unit Advanced Signal Interpreter > --- WEAPON (2) ------- Autogun > --- INVENTORY (15) --- Medium Storage Unit Advanced Weight Redist. System Structural Scanner Machine Analyzer Melee Analysis Suite Transmission Jammer Advanced ECM Suite Hacking Suite Hacking Suite System Shield Field Laser Heavy Laser Peak State ------------ > --- POWER ------------ Light Angular Momentum Engine Light Angular Momentum Engine > --- PROPULSION ------- Carbon-fiber Leg Carbon-fiber Leg Carbon-fiber Leg Carbon-fiber Leg Carbon-fiber Leg > --- UTILITY ---------- Advanced Heat Sink Medium Storage Unit Advanced Signal Interpreter Hacking Suite Hacking Suite System Restoration Module > --- WEAPON ----------- Heavy Laser Heavy Laser > --- INVENTORY -------- Advanced Weight Redist. System Structural Scanner Machine Analyzer Melee Analysis Suite Transmission Jammer Advanced ECM Suite Hardened Medium Armor Plating Hacking Suite Hacking Suite System Shield [Rating: 57] Favorites ----------- Power Nuclear Core Engine Improved Ion Engine Power Core Nuclear Core Propulsion Carbon-fiber Leg Treads Armored Treads Leg Carbon-fiber Leg Hover Unit Improved Hover Unit Flight Unit Cesium-ion Thruster Utility Hacking Suite Device Improved Sensor Array Storage Large Storage Unit Processor Signal Interpreter Hackware Hacking Suite Protection Improved Light Armor Plating Weapon Axe Energy Gun Small Laser Ballistic Gun Heavy Assault Rifle Ballistic Cannon Assault Cannon Launcher Missile Launcher Special Weapon Mining Laser Slashing Weapon Axe Build | -11 -10 -9 -9 -8 -7 -6 -6 ------- Run | Yrd Mat Mat Min Mat Fac Fac Ext Slots Evolved 8 | . . 2 . 2 2 2 . Power 1 | . . . . . . 1 . Propulsion 3 | . . 1 . . 1 1 . Utility 4 | . . 1 . 2 1 . . Weapon . | . . . . . . . . Parts Attached 138 | 7 13 21 . 42 11 5 39 Power 24 | 1 1 5 . 9 1 . 7 Engine 14 | 1 1 2 . 5 . . 5 Core 10 | . . 3 . 4 1 . 2 Reactor . | . . . . . . . . Propulsion 49 | 2 3 5 . 14 5 1 19 Treads 12 | 2 3 5 . 2 . . . Leg 25 | . . . . 10 1 . 14 Wheel . | . . . . . . . . Hover 1 | . . . . 1 . . . Flight 11 | . . . . 1 4 1 5 Utility 29 | 2 1 4 . 7 5 3 7 Device 14 | 1 . . . 4 3 2 4 Storage 6 | 1 . 3 . . 1 . 1 Processor 5 | . . 1 . 3 . 1 . Hackware 2 | . 1 . . . 1 . . Protection 2 | . . . . . . . 2 Artifact . | . . . . . . . . Weapon 36 | 2 8 7 . 12 . 1 6 Energy Gun 6 | 2 1 . . . . . 3 Energy Cannon . | . . . . . . . . Ballistic Gun 16 | . 6 6 . 3 . . 1 Ballistic Cannon 7 | . . 1 . 4 . . 2 Launcher 3 | . . . . 2 . 1 . Special Weapon 1 | . 1 . . . . . . Impact Weapon . | . . . . . . . . Slashing Weapon 3 | . . . . 3 . . . Piercing Weapon . | . . . . . . . . Special Melee Weapon . | . . . . . . . . Unidentified Prototypes 3 | . . 1 . . 2 . . Parts Lost 51 | . 1 2 . 9 1 . 38 Power 10 | . . 1 . 2 . . 7 Propulsion 26 | . 1 . . 6 1 . 18 Utility 8 | . . . . 1 . . 7 Weapon 7 | . . 1 . . . . 6 Highest Loss Streak 9 | . 1 2 . 2 1 . 9 To Critical Strikes 1 | . . . . 1 . . . Average Slot Usage (%) 93 | . 95 96 100 94 99 89 83 Engine 4 | . 14 2 11 5 . . 3 Core 4 | . . 8 . 3 7 6 2 Treads 13 | . 24 31 33 3 . . . Leg 10 | . . . . 21 2 . 19 Flight 4 | . . . . . 27 29 8 Device 9 | . 9 . . 16 15 13 8 Storage 9 | . 14 11 11 9 7 6 6 Processor 7 | . . 10 11 6 7 6 6 Hackware 10 | . 4 11 11 9 14 13 12 Energy Gun 1 | . 10 . . . . . 4 Ballistic Gun 8 | . 16 20 11 3 . . . Ballistic Cannon 2 | . . . 11 4 . . 2 Launcher 1 | . . . . 2 7 5 1 Slashing Weapon 3 | . . . . 7 7 6 1 Naked Turns . | . . . . . . . . Heaviest Build 55 | 13 17 33 33 39 36 28 55 Greatest Support 84 | 40 40 60 60 60 54 34 84 Greatest Overweight (x) 9 | . . . . 9 . . 7 Average Overweight (x) . | . . . . . . . . Largest Inventory Capacity 15 | 8 8 15 15 15 15 10 15 Average Capacity 11 | 7 8 9 15 15 10 10 10 Most Carried 15 | 6 8 10 10 15 15 10 13 Average Carried 10 | 4 6 8 8 13 10 9 10 Final Capacity 15 | 8 8 15 15 15 10 10 15 Final Carried 15 | 5 8 8 10 15 10 10 12 Class Distribution -------------------- 38% | Mutant 23% | Scavenger-Mutant 17% | Scavenger-Assassin 14% | Hacker-Sprinter 4% | Scavenger-Skirmisher Dominant Class ---------------- Mutant | -10/Materials Mutant | -9/Materials Scavenger-Mutant | -9/Mines Scavenger-Assassin | -8/Materials Hacker-Sprinter | -7/Factory Hacker-Sprinter | -6/Factory Scavenger-Mutant | -6/Extension Resources | -11 -10 -9 -9 -8 -7 -6 -6 ----------- Run | Yrd Mat Mat Min Mat Fac Fac Ext Matter Collected 2802 | 270 182 910 10 823 133 50 424 Remotely . | . . . . . . . . Salvage Created 6185 | 286 427 1678 . 1895 181 49 1669 Parts 387 | 35 35 125 . 107 19 2 64 Haulers Intercepted 9 | . 2 1 . 5 . . 1 Recyclers Shooed 4 | 1 . 2 . . . . 1 Parts Field Recycled . | . . . . . . . . Retrieved Matter . | . . . . . . . . Parts Self-Destructed . | . . . . . . . . Prevented . | . . . . . . . . Kills | -11 -10 -9 -9 -8 -7 -6 -6 ------- Run | Yrd Mat Mat Min Mat Fac Fac Ext Combat Hostiles Destroyed 109 | . 10 34 . 40 2 . 23 Melee 32 | . . . . 18 2 . 12 Guns 61 | . 9 34 . 12 . . 6 Cannons 13 | . 1 . . 7 . . 5 AOE 3 | . . . . 3 . . . Classes Destroyed 16 | 3 5 4 . 2 1 . 1 Worker 8 | 2 2 1 . 3 . . . Builder 9 | . . 5 . . . . 4 Tunneler 8 | 8 . . . . . . . Hauler 9 | . 2 1 . 5 . . 1 Recycler 10 | 1 . 3 . 1 . . 5 Mechanic 1 | . . 1 . . . . . Operator 10 | . 1 1 . 2 3 2 1 Watcher 10 | . 2 3 . 3 1 . 1 Swarmer 33 | . 6 12 . 9 . . 6 Grunt 48 | . 4 12 . 20 1 . 11 Brawler 1 | . . . . 1 . . . Duelist 1 | . . 1 . . . . . Sentry 23 | . . 9 . 9 . . 5 Hunter 1 | . . . . 1 . . . Programmer 1 | . . . . . 1 . . Behemoth 1 | . . . . . . . 1 Best Kill Streak 8 | 4 5 8 . 6 2 1 7 Combat Bots Only 7 | . 3 7 . 6 2 . 4 Max Kills in Single Turn 3 | 1 2 2 . 3 1 1 2 Gunslinging 1 | . . 1 . . . . . Exploded 3 | . . . . 3 . . . Melee 1 | . . . . 1 1 . 1 Uniques/NPCs Destroyed . | . . . . . . . . Combat | -11 -10 -9 -9 -8 -7 -6 -6 -------- Run | Yrd Mat Mat Min Mat Fac Fac Ext Hostile Shots Fired 767 | . 52 144 . 198 8 . 365 Missed 227 | . 15 26 . 55 5 . 126 Damage Taken 8193 | . 390 1552 . 2057 44 . 4150 Core 1352 | . 72 163 . 236 13 . 868 Absorbed by Shields . | . . . . . . . . Regen/Repaired (Parts) 245 | . 57 28 . 100 . 60 . Core Remaining (%) 77 | 100 71 . 59 57 98 . . Volleys Fired 350 | 16 46 118 . 61 1 . 108 Largest 2 | 2 2 2 . 2 1 . 2 Hottest 140 | 80 140 48 . 60 36 . 138 Shots Fired 616 | 32 92 220 . 112 1 . 159 Gun 487 | 32 87 220 . 54 . . 94 Cannon 120 | . . . . 55 . . 65 Launcher 4 | . . . . 3 1 . . Special 5 | . 5 . . . . . . Kinetic 430 | . 32 220 . 109 . . 69 Thermal 182 | 32 60 . . . . . 90 Explosive 4 | . . . . 3 1 . . Electromagnetic . | . . . . . . . . Robot Hit Streak 19 | 6 7 19 . 13 4 . 11 Robot Miss Streak 8 | 1 3 4 . 4 . . 8 Penetration Max 1 | . . . . . . . 1 Secondary Targets 4 | . . 4 . . . . . Max Gunslinging Chain 1 | . . 1 . . . . . Shots Hit Robots 509 | 19 50 158 . 143 9 6 124 Core Hits 254 | 12 22 67 . 72 6 1 74 Critical Kills 7 | . . 3 . . . . 4 Critical Parts Destroyed 9 | . 1 2 . 1 . . 5 Critical Strikes 32 | . 1 5 . 12 1 . 13 Destroy 18 | . 1 5 . 1 . . 11 Blast 2 | . . . . 1 . . 1 Sever 12 | . . . . 10 1 . 1 Melee Attacks 227 | . . . . 103 28 36 60 Impact . | . . . . . . . . Slashing 227 | . . . . 103 28 36 60 Piercing . | . . . . . . . . Sneak Attacks 15 | . . . . 9 . . 6 Combat Hostiles 4 | . . . . . . . 4 Follow-up Attacks . | . . . . . . . . Damage Inflicted 12750 | 209 760 2510 . 4614 405 329 3923 Guns 5689 | 209 710 2510 . 941 . . 1319 Cannons 1801 | . . . . 569 . . 1232 Explosions 388 | . . . . 350 38 . . Melee 4645 | . . . . 2750 367 329 1199 Ramming 179 | . 2 . . 4 . . 173 Kinetic 5595 | . 299 2510 . 1510 . . 1276 Thermal 1943 | 209 459 . . . . . 1275 Explosive 388 | . . . . 350 38 . . Electromagnetic . | . . . . . . . . Impact . | . . . . . . . . Slashing 4645 | . . . . 2750 367 329 1199 Piercing . | . . . . . . . . Highest Corruption 2 | . 2 . . . . . 1 Average Corruption 1 | . 2 . . . . . 1 Corruption Purged 1 | . . . . . . . 1 Corruption Blocked . | . . . . . . . . Effects 6 | . 2 . . . . . 4 Message Errors 2 | . . . . . . . 2 Matter Fused 1 | . . . . . . . 1 Energy Discharges 1 | . 1 . . . . . . Data Loss (minor) 1 | . 1 . . . . . . Data Loss (major) 1 | . . . . . . . 1 Overload Shots . | . . . . . . . . Overflow Damage 528 | . . . . 248 32 104 144 Projectiles 28 | . . . . 1 . . 27 Explosions 6 | . . . . . . . 6 Melee 494 | . . . . 247 32 104 111 Knockbacks 18 | . 1 . . 11 . . 6 Impact 2 | . 1 . . . . . 1 Kinetic 13 | . . . . 8 . . 5 Secondary 3 | . . . . 3 . . . Self-Inflicted Damage 60 | . . . . . . . 60 Shots 1 | . . . . . . . 1 Rammed 3 | . 2 . . 1 . . . Targets Rammed 64 | . 2 . . 1 . . 61 Kicked 61 | . . . . . . . 61 Crushed . | . . . . . . . . Highest Temperature 505 | 54 505 4 . 21 . 1 235 Average Temperature 79 | 21 175 2 . 6 . 1 51 Received Heat Transfer 2799 | . 165 444 . 936 18 . 1236 Effects 5 | . 5 . . . . . . Shutdowns 1 | . 1 . . . . . . Interference 3 | . 3 . . . . . . Damage (minor) 1 | . 1 . . . . . . Siege Activations . | . . . . . . . . Robots Corrupted . | . . . . . . . . Combat Hostiles . | . . . . . . . . Parts Fried . | . . . . . . . . Impact Corruptions . | . . . . . . . . Robots Melted . | . . . . . . . . Combat Hostiles . | . . . . . . . . Parts Melted 4 | . 2 . . . . . 2 Heat Transferred 4145 | 475 1191 . . . . . 2479 Parts Sabotaged . | . . . . . . . . Parts Stolen . | . . . . . . . . Parts Stripped . | . . . . . . . . Power Chain Reactions . | . . . . . . . . Alert | -11 -10 -9 -9 -8 -7 -6 -6 ------- Run | Yrd Mat Mat Min Mat Fac Fac Ext Peak Influence 487 | 55 281 406 55 487 258 190 339 Initial 210 | . . 5 55 21 210 91 30 Average 169 | 29 93 130 55 269 182 98 150 Maximum Alert Level 2 | . 1 2 . 2 1 . 1 Low Security (%) 67 | 100 90 82 100 42 41 100 64 Level 1 25 | . 9 17 . 33 58 . 35 Level 2 7 | . . . . 23 . . . Level 3 . | . . . . . . . . Level 4 . | . . . . . . . . Level 5 . | . . . . . . . . High Security . | . . . . . . . . Max Security . | . . . . . . . . Squads Dispatched 29 | . 2 5 . 8 5 3 6 Investigation 11 | . . 3 . 2 3 . 3 Extermination 1 | . . . . . 1 . . Reinforcement 13 | . 2 2 . 2 1 3 3 Assault . | . . . . . . . . Garrison 4 | . . . . 4 . . . Intercept . | . . . . . . . . Searches Triggered . | . . . . . . . . Construction Impeded 3 | . . . . 1 . . 2 Haulers Reinforced . | . . . . . . . . Active Scanning Responses . | . . . . . . . . Cargo Convoy Interrupts . | . . . . . . . . Stealth | -11 -10 -9 -9 -8 -7 -6 -6 --------- Run | Yrd Mat Mat Min Mat Fac Fac Ext Distress Signals 8 | . 3 . . 3 . 1 1 Communications Jammed . | . . . . . . . . Distress Signals . | . . . . . . . . Times Spotted 187 | . 20 50 . 55 5 7 50 Peak Tracking Total 6 | . 5 5 . 6 3 4 6 Tactical Retreats 16 | . . 1 . 3 . 2 10 Traps | -11 -10 -9 -9 -8 -7 -6 -6 ------- Run | Yrd Mat Mat Min Mat Fac Fac Ext Traps Triggered 7 | . 2 1 . 3 . . 1 Indirectly . | . . . . . . . . Trap Hack Attempts . | . . . . . . . . Triggered . | . . . . . . . . Disarmed 10 | . . 4 . . 6 . . Reprogrammed . | . . . . . . . . Reused . | . . . . . . . . Traps Extracted . | . . . . . . . . Installed 2 | . . . . 2 . . . Triggered . | . . . . . . . . Most Traps Carried 2 | . . . 2 2 . . . Machines | -11 -10 -9 -9 -8 -7 -6 -6 ---------- Run | Yrd Mat Mat Min Mat Fac Fac Ext Machines Disabled 2 | . . . . . . . 2 Max in Single Turn 2 | . . . . . . . 2 Garrison Access 1 | . . . . 1 . . . Energy Cycler 1 | . . . . . . . 1 Machines Repaired . | . . . . . . . . Machines Dismantled . | . . . . . . . . Machines Sabotaged . | . . . . . . . . Overloaded Fab Kills . | . . . . . . . . Hacking | -11 -10 -9 -9 -8 -7 -6 -6 --------- Run | Yrd Mat Mat Min Mat Fac Fac Ext Machines Accessed 49 | . 3 12 . 7 9 9 9 Terminals 35 | . 1 8 . 3 7 7 9 Fabricators . | . . . . . . . . Repair Stations 4 | . 1 1 . 1 . 1 . Recycling Units 5 | . 1 2 . 2 . . . Scanalyzers 3 | . . 1 . . 1 1 . Garrison Access 2 | . . . . 1 1 . . Total Hacks 150 | . 7 54 . 28 26 17 18 Successful 90 | . 3 39 . 13 13 12 10 Failed 59 | . 4 14 . 15 13 5 8 Catastrophic 20 | . 1 4 . 2 6 3 4 Database Lockouts 1 | . . 1 . . . . . Manual 58 | . 3 17 . 13 11 6 8 Terminals 95 | . 3 28 . 14 22 10 18 Fabricators . | . . . . . . . . Repair Stations 21 | . 3 6 . 8 . 4 . Recycling Units 11 | . 1 7 . 3 . . . Scanalyzers 18 | . . 13 . . 2 3 . Garrison Access 5 | . . . . 3 2 . . Terminal Hacks 50 | . . 19 . 4 11 6 10 Record 5 | . . . . . 3 . 2 Robot Analysis 2 | . . 1 . . 1 . . Open Door 6 | . . . . . . 1 5 Open DSF 2 | . . . . . . 2 . Branch Access Points 2 | . . 2 . . . . . Terminal Index 5 | . . 1 . 1 1 1 1 Fabricator Index 1 | . . . . . 1 . . Alert Level 8 | . . 5 . 2 1 . . Unreport Threat 6 | . . 3 . 1 . 2 . Locate Traps 3 | . . . . . 2 . 1 Disarm Traps 2 | . . 1 . . 1 . . Investigation Status 1 | . . 1 . . . . . Reinforcement Status 1 | . . 1 . . . . . Hauler Manifests 1 | . . 1 . . . . . Registered Components 2 | . . 1 . . 1 . . Zone Layout 3 | . . 2 . . . . 1 Fabricator Hacks . | . . . . . . . . Repair Station Hacks 14 | . 2 3 . 5 . 4 . Scan Component 8 | . 1 2 . 3 . 2 . Repair 6 | . 1 1 . 2 . 2 . Recycling Unit Hacks 8 | . 1 4 . 3 . . . Report Inventory 7 | . 1 4 . 2 . . . Retrieve Matter 1 | . . . . 1 . . . Scanalyzer 17 | . . 13 . . 2 2 . Insert Component 9 | . . 7 . . 1 1 . Analyze 8 | . . 6 . . 1 1 . Garrison Access Hacks 1 | . . . . 1 . . . Seal Access 1 | . . . . 1 . . . Unauthorized Hacks . | . . . . . . . . Terminals . | . . . . . . . . Fabricators . | . . . . . . . . Repair Stations . | . . . . . . . . Recycling Units . | . . . . . . . . Scanalyzers . | . . . . . . . . Garrison Access . | . . . . . . . . Data Cores Recovered 2 | . . . . . 2 . . Used . | . . . . . . . . Hacking Detections 41 | . 2 9 . 6 8 7 9 Full Trace Events 12 | . 2 3 . 1 3 . 3 Feedback Events 1 | . . . . . . . 1 Corruption 1 | . . . . . . . 1 Feedback Blocked . | . . . . . . . . Robot Schematics Acquired . | . . . . . . . . Robots Built . | . . . . . . . . Authchips . | . . . . . . . . Time . | . . . . . . . . Total Robot Build Rating . | . . . . . . . . Part Schematics Acquired 8 | . . 6 . . 1 1 . Parts Built . | . . . . . . . . Authchips . | . . . . . . . . Time . | . . . . . . . . Total Part Build Rating . | . . . . . . . . Parts Repaired 6 | . 1 1 . 2 . 2 . Time 185 | . 26 19 . 76 . 64 . Parts Recycled . | . . . . . . . . Recycled Matter . | . . . . . . . . Retrieved Matter 140 | . . . . 140 . . . Retrieved Components . | . . . . . . . . Parts Scanalyzed 8 | . . 6 . . 1 1 . Part Schematics Acquired 8 | . . 6 . . 1 1 . Parts Damaged . | . . . . . . . . Bothacking | -11 -10 -9 -9 -8 -7 -6 -6 ------------ Run | Yrd Mat Mat Min Mat Fac Fac Ext Used RIF Installer . | . . . . . . . . Robots Hacked . | . . . . . . . . Non-combat . | . . . . . . . . Combat . | . . . . . . . . Robot Hacks Applied . | . . . . . . . . Relay Couplers Released . | . . . . . . . . Fabnet Peak Effective % . | . . . . . . . . Robots Rewired 3 | . . . . . . . 3 Allies Hacked . | . . . . . . . . Hacks Repelled . | . . . . . . . . Allies | -11 -10 -9 -9 -8 -7 -6 -6 -------- Run | Yrd Mat Mat Min Mat Fac Fac Ext Total Allies 8 | . . . . . . . 8 Largest Group 3 | . . . . . . . 3 Highest-Rated Group 93 | . . . . . . . 93 Highest-Rated Ally 31 | . . . . . . . 31 Total Orders . | . . . . . . . . Ally Attacks 36 | . . . . . . . 36 Total Damage 525 | . . . . . . . 525 Kills 8 | . . . . . . . 8 Allies Corrupted . | . . . . . . . . Allies Melted . | . . . . . . . . Intel | -11 -10 -9 -9 -8 -7 -6 -6 ------- Run | Yrd Mat Mat Min Mat Fac Fac Ext Robot Analysis Total 2 | . . 1 . . 1 . . Derelict Logs Recovered . | . . . . . . . . Drone Launches . | . . . . . . . . Drone Recoveries . | . . . . . . . . Exploration | -11 -10 -9 -9 -8 -7 -6 -6 ------------- Run | Yrd Mat Mat Min Mat Fac Fac Ext Turns Passed 10707 | 400 897 3007 222 3292 679 571 1639 Spaces Moved 6719 | 160 414 1382 133 1528 959 1102 1041 Core 10 | 4 . . . 2 . . 4 Treads 2224 | 156 414 1382 133 139 . . . Legs 1905 | . . . . 1387 39 . 479 Wheels . | . . . . . . . . Hover . | . . . . . . . . Flight 2580 | . . . . . 920 1102 558 Fastest Speed 23 | 50 160 160 166 110 26 23 23 Average Speed 101 | 157 160 167 166 132 29 24 73 Slowest Speed 500 | 160 160 170 166 500 110 26 400 Overloaded Moves . | . . . . . . . . Propulsion Burnouts . | . . . . . . . . Robots Hopped . | . . . . . . . . Cave-ins Triggered . | . . . . . . . . Exploration Rate (%) 39 | 8 60 70 32 63 20 19 47 Regions Visited 7 Branch Regions 2 Pre-discovered Areas . | . . . . . . . . Known Exits Taken 5 | . . 1 1 1 1 1 . Unknown Exits Taken 2 | 1 1 . . . . . . Scrap Searched 1 | . . . 1 . . . . Spaces Dug 71 | . 1 . . 5 19 26 20 Terrain Destroyed 143 | . 2 . . 30 26 26 59 Melee 69 | . . . . 4 19 26 20 Projectile 16 | . 2 . . 2 . . 12 AOE 58 | . . . . 24 7 . 27 Terrain Rammed . | . . . . . . . . Walls Destroyed . | . . . . . . . . Machines Disabled . | . . . . . . . . Actions | -11 -10 -9 -9 -8 -7 -6 -6 --------- Run | Yrd Mat Mat Min Mat Fac Fac Ext Total 9598 | 274 547 1860 134 2509 1309 1339 1626 Wait 1905 | 85 52 308 . 714 279 191 276 Move 6712 | 159 413 1381 132 1527 958 1101 1041 Hop . | . . . . . . . . Pick Up 72 | 6 9 10 2 22 14 3 6 Fast Attach 67 | 7 7 6 . 20 1 1 25 Attach 17 | . . 4 . 7 2 1 3 Detach 10 | . 1 1 . 8 . . . Swap 55 | . 6 11 . 15 9 3 11 Drop 92 | 1 11 21 . 30 17 3 9 Fire 350 | 16 46 118 . 61 1 . 108 Melee 226 | . . . . 102 28 36 60 Ram . | . . . . . . . . Kick 61 | . . . . . . . 61 Crush 3 | . 2 . . 1 . . . Escape Stasis 15 | . . . . . . . 15 Rewire 11 | . . . . . . . 11 Trap 2 | . . . . 2 . . . Miscellaneous . | . . . . . . . . Route ------- -11/Scrapyard -10/Materials (discovered 2 exits: *Mat / [*Min]) -9/Materials (discovered 4 exits: *Mat x2 / *Min x2) -9/Mines -8/Materials -7/Factory -6/Factory (discovered 2 exits: *Fac / *Ext) -6/Extension History --------- Turn | Location | Event 49 | -11/Scrapyard | Discovered new exit (range 14) 401 | -11/Scrapyard | Entered Materials 402 | -10/Materials | Build established: Mutant 571 | -10/Materials | Discovered new exit (range 14) 940 | -10/Materials | Repaired Lgt. Treads 1263 | -10/Materials | Discovered new exit (range 12) 1298 | -10/Materials | Entered another Materials area 1298 | -9/Materials | Evolved 2 slots: Propulsion x1, Utility x1 1665 | -9/Materials | Discovered new exit (range 13) 1760 | -9/Materials | Identified exit to Mines 2024 | -9/Materials | Discovered new exit (range 4) 2029 | -9/Materials | Identified exit to Materials 2989 | -9/Materials | Destroyed 7 combat bots 3026 | -9/Materials | Repaired Nuclear Core 3241 | -9/Materials | Central database locked down 3642 | -9/Materials | Discovered exit to Materials (range 14) 4242 | -9/Materials | Build established: Scavenger-Mutant 4305 | -9/Materials | Entered Mines 4313 | -9/Mines | Met a Derelict bent on vengeance 4452 | -9/Mines | Found a hidden stash of uninstalled traps 4470 | -9/Mines | Discovered exit to Materials (range 6) 4527 | -9/Mines | Entered Materials 4527 | -8/Materials | Evolved 2 slots: Utility x2 4658 | -8/Materials | Garrison activated, responded to threat 4808 | -8/Materials | Garrison activated, responded to threat 5240 | -8/Materials | Build established: Scavenger-Assassin 5474 | -8/Materials | Discovered new exit (range 16) 5517 | -8/Materials | Identified exit to Factory 6052 | -8/Materials | Build established: Scavenger-Mutant 6352 | -8/Materials | Build established: Mutant 6827 | -8/Materials | Build established: Scavenger-Assassin 6972 | -8/Materials | Repaired Imp. Sensor Array 7012 | -8/Materials | Repaired Carbon-fiber Leg 7819 | -8/Materials | Entered Factory 7819 | -7/Factory | Evolved 2 slots: Propulsion x1, Utility x1 8141 | -7/Factory | Build established: Hacker-Sprinter 8478 | -7/Factory | Discovered new exit (range 8) 8497 | -7/Factory | Identified exit to Factory 8498 | -7/Factory | Entered another Factory area 8498 | -6/Factory | Evolved 2 slots: Power x1, Propulsion x1 8527 | -6/Factory | Discovered new exit (range 15) 8530 | -6/Factory | Identified exit to Factory 8967 | -6/Factory | Repaired Structural Scanner 9006 | -6/Factory | Repaired Missile Launcher 9065 | -6/Factory | Discovered new exit (range 5) 9066 | -6/Factory | Identified exit to Extension 9069 | -6/Factory | Entered Extension 9141 | -6/Extension | Rescued a captive Derelict 9241 | -6/Extension | Rescued a captive Derelict 9331 | -6/Extension | Rescued a captive Derelict 9349 | -6/Extension | Rescued a captive Derelict 9351 | -6/Extension | Rescued a captive Derelict 9484 | -6/Extension | Lost 6 parts (5n1w) 9597 | -6/Extension | Lost 7 parts (2p3n1u1w) 9691 | -6/Extension | Energy Cycler disabled 9691 | -6/Extension | Rescued a captive Derelict 9691 | -6/Extension | Rescued a captive Derelict 9691 | -6/Extension | Rescued a captive Derelict 9691 | -6/Extension | Rescued a captive Derelict 9692 | -6/Extension | Rescued a captive Derelict 9693 | -6/Extension | Rescued a captive Derelict 9700 | -6/Extension | Rescued a captive Derelict 9705 | -6/Extension | Rescued a captive Derelict 9718 | -6/Extension | Rescued a captive Derelict 9782 | -6/Extension | Spotted B-75 Beast 9802 | -6/Extension | Core integrity fell below 50% 9817 | -6/Extension | Spotted B-75 Beast 9819 | -6/Extension | Lost 4 parts (2p1n1u) 9939 | -6/Extension | Build established: Scavenger-Mutant 10419 | -6/Extension | Disrupted transfer network 10609 | -6/Extension | Destroyed B-75 Beast 10613 | -6/Extension | Lost 3 allies 10645 | -6/Extension | Lost 6 parts (4n2u) 10663 | -6/Extension | Core integrity fell below 20% 10708 | -6/Extension | Destroyed by G-50 Soldier with Heavy Laser Last Messages --------------- 10650_ R-10 Processor destroyed. 10656_ Bore Cannon destroyed. 10656_ G-50 Soldier knocked back. 10656_ Hacking Suite destroyed. 10661_ Acquired VTOL Module. 10663_ Adv. Heat Sink destroyed. 10665_ Carbon-fiber Leg destroyed. 10665_ Lgt. Nuclear Core destroyed. 10667_ G-50 Soldier knocked back. 10669_ G-50 Soldier destroyed. 10670_ Lgt. Angular Momentum Engine destroyed. 10671_ Acquired 6 matter. 10677_ R-10 Processor knocked back. 10681_ VTOL Module destroyed. 10683_ R-10 Processor destroyed. 10686_ Magnetic Acceleration Cannon destroyed. 10689_ Acquired Autogun. 10693_ Carbon-fiber Leg destroyed. 10696_ Acquired 5 matter. 10702_ K-01 Serf destroyed. Map ----- +----------------------------------------------------+ | %% %# ! # #### #????#%#??????????? | | % %+% #????# #??????????? | | % % !#% ################## #????# #??????????? | | ! #####?????### # #########????# #??????????? | | #######???????????######????????????# #??????????? | | ????????????????????????????????????# #??????????? | | ????????????????????????????????????# #??????????? | | ????????????????????????????????????# #??????????? | | ??????????????????????????????????### #??????????? | | ????????????????????????????????###T#%#??????????? | | ????????????????????????????????# % #??????????? | | ????????????????????????????????##### #??????????? | | ????????????????????????????????????#%#??????????? | | ????????????????????????????????????#%#??????????? | | ????????????????????????????????????#%#???#??????? | | ????????????????????????????????????# ###!"??????? | | ??????????????????????????????????? =%!%%! ?????? | | ??????????????????????????????????# !!!=% ?????? | | ??????????????????????????????????# %[!=[% ????? | | ??????????????????????????#####??## %%% ???? | | ###########################;#;###;#==*[% =?? | | R% !%*%* | | % % !%*[= | | ! =!!=! %!/[g=%*=R% | | %*|* *!% %%*%*%*=!%!h%% | | !%!%%%=@ *%!u|%= % ? | | ############+###########;########;# % ? | | ????# #### #????????###?????????# ??? | | ????# #????????????????????# ????? | | ????#[[[######????????????????????# ???????? | | ????#####?????????????????????????? ?????????? | | ?????????????????????????????????????????????????? | | ?????????????????????????????????????????????????? | | ?????????????????????????????????????????????????? | | | | | | | | | | | | | | | | | | | | | | | | | | | | | | | | | +----------------------------------------------------+ Best States ------------- Heat Dissipation 56 Energy Generation 31 Energy Capacity 350 Matter Stores 300 Matter Capacity 300 Sight Range 16 Robot Scan Range 16 Terrain Scan Range 16 Terrain Scan Density 10 Additional Mass Support 9 Armor Coverage 225 Evasion (%) 65 Recoil Reduction 3 Offensive Hacking 20 Item Schematics ----------------- Lgt. Treads | -9/Materials | Scanalyzed Hvy. Assault Rifle | -9/Materials | Scanalyzed Mining Laser | -9/Materials | Scanalyzed Flight Unit | -9/Materials | Scanalyzed Lgt. Ion Engine | -9/Materials | Scanalyzed Signal Interpreter | -9/Materials | Scanalyzed System Restoration Module | -7/Factory | Scanalyzed Hacking Suite | -6/Factory | Scanalyzed Robot Schematics ------------------ None Fabricated ------------ Nothing Alien Tech Used ----------------- None Achievements -------------- A New Friend Part-time Excavator Party Time Challenges ------------ None Game ------ Seed RelayMultinovaClaws Manual? 0 Play Time 02:24:47 Cumulative 21.4 hours Start 2024.04.03 @ 18:31:54 End 2024.04.03 @ 21:07:09 Sessions 1 Manual Loads 0 Difficulty Rogue Special Mode None Game No. 10 Rogue 10 Adventurer 0 Explorer 0 Win Type - Total 0 Types 0/0/0/0/0/0/0/0/0 Lore% 16 Gallery% 17 Achievement% 18 Wizard Run 0 Options --------- Layout 1 ASCII 0 Keyboard 1 Movement Numpad Keybinds 0 Fullscreen 2 Font 32/TamsynBold Map View 50x40 Zoom Use 0% Tactical HUD 1 Map Filters NONE Filters NONE Steam 1 RUN: 0bf96dd7-683f-4eb2-aceb-2edde63f6a01